Cogmind - Beta 10.2 *** ADVENTURER MODE // 2021.10.26 @ 04:09:07 Player: Flamebroken Result: Destroyed by Y-45 Defender with Beam Rifle Performance ------------- Evolutions (2) 1000 Regions Visited (6) 1200 Robots Destroyed (29) 145 Value Destroyed (944) 944 Prototype IDs (4) 80 Alien Tech Used (0) 0 Bonus (377) 377 TOTAL SCORE: 3746 Bonus ------- High Alert Combat Kills 77 Aligned with FarCom 300 Cogmind --------- Core Integrity 0/550 Matter 208/300 Energy 46/100 System Corruption 4% Temperature Cool (18) Movement Rolling (100) Location -8/Materials Parts ------- > --- POWER (1) -------- (None) > --- PROPULSION (2) --- Compact Wheel > --- UTILITY (6) ------ Advanced Sensor Array Advanced Signal Interpreter > --- WEAPON (2) ------- Shock Bomb Launcher > --- INVENTORY (4) ---- Gatling Laser Gatling Laser Peak State ------------ > --- POWER ------------ Light Nuclear Core > --- PROPULSION ------- Airjet Airjet > --- UTILITY ---------- Weight Redist. System Improved Sensor Array Advanced Signal Interpreter Maneuvering Thrusters Skeleton Box Supersonic Drone Bay > --- WEAPON ----------- Datajack Longsword +1 > --- INVENTORY -------- Particle Charger Maneuvering Thrusters Flak Cannon Flak Cannon [Rating: 43] Favorites ----------- Power Light Ion Engine Engine Light Ion Engine Power Core Light Nuclear Core Propulsion Flight Unit Wheel Wheel Hover Unit Airjet Flight Unit Flight Unit Utility Improved Sensor Array Device Improved Sensor Array Processor Visual Processing Unit Weapon Mining Laser Energy Gun EM Pulse Gun Ballistic Gun Assault Rifle Ballistic Cannon Flak Cannon Launcher Mini Grenade Launcher Special Weapon Mining Laser Slashing Weapon Longsword +1 Special Melee Weapon Datajack Build | -11 -10 -9 -9 -9 -8 -8 ------- Run | Scr Mat Mat Min Exi Min Mat Slots Evolved 4 | . . 2 . . . 2 Power . | . . . . . . . Propulsion . | . . . . . . . Utility 4 | . . 2 . . . 2 Weapon . | . . . . . . . Parts Attached 47 | 5 5 11 . 5 1 20 Power 5 | 1 1 1 . . . 2 Engine 3 | 1 1 1 . . . . Core 2 | . . . . . . 2 Reactor . | . . . . . . . Propulsion 11 | 2 1 2 . . . 6 Treads . | . . . . . . . Leg . | . . . . . . . Wheel 4 | 2 1 . . . . 1 Hover 5 | . . . . . . 5 Flight 2 | . . 2 . . . . Utility 13 | . . 4 . 2 1 6 Device 10 | . . 2 . 2 1 5 Storage . | . . . . . . . Processor 3 | . . 2 . . . 1 Hackware . | . . . . . . . Protection . | . . . . . . . Artifact . | . . . . . . . Weapon 18 | 2 3 4 . 3 . 6 Energy Gun 5 | 1 2 . . . . 2 Energy Cannon . | . . . . . . . Ballistic Gun 1 | 1 . . . . . . Ballistic Cannon 2 | . . 2 . . . . Launcher 3 | . . . . . . 3 Special Weapon 3 | . . 2 . 1 . . Impact Weapon . | . . . . . . . Slashing Weapon 2 | . . . . 1 . 1 Piercing Weapon . | . . . . . . . Special Melee Weapon 2 | . 1 . . 1 . . Unidentified Prototypes 4 | . . . . 3 . 1 Parts Lost 17 | . . . . . . 17 Power 1 | . . . . . . 1 Propulsion 4 | . . . . . . 4 Utility 7 | . . . . . . 7 Weapon 5 | . . . . . . 5 Highest Loss Streak 12 | . . . . . . 12 Average Slot Usage (%) 90 | . 69 76 100 99 100 75 Engine 9 | . 13 11 11 11 11 . Wheel 3 | . 28 10 . . . . Hover 1 | . . . . . . 7 Flight 16 | . . 11 22 22 22 6 Device 22 | . . 21 22 22 26 34 Processor 16 | . . 7 22 22 17 9 Energy Gun 2 | . 18 8 . . . . Special Weapon 12 | . . . 22 19 11 1 Special Melee Weapon 3 | . 4 5 . 1 11 5 Naked Turns . | . . . . . . . Heaviest Build 17 | 9 9 17 7 9 8 16 Greatest Support 24 | 20 20 20 8 8 14 24 Greatest Overweight (x) 3 | . . 3 . 1 . 2 Average Overweight (x) . | . . . . . . . Largest Inventory Capacity 4 | 4 4 4 4 4 4 4 Average Capacity 4 | 4 4 4 4 4 4 4 Most Carried 4 | 2 4 4 4 4 4 4 Average Carried 3 | 1 2 3 4 3 4 3 Final Capacity 4 | 4 4 4 4 4 4 4 Final Carried 4 | 2 4 4 4 4 4 2 Class Distribution -------------------- 65% | Scout 34% | Mutant Dominant Class ---------------- Mutant | -10/Materials Scout | -9/Materials Scout | -9/Mines Scout | -9/Exiles Mutant | -8/Mines Scout | -8/Materials Resources | -11 -10 -9 -9 -9 -8 -8 ----------- Run | Scr Mat Mat Min Exi Min Mat Matter Collected 568 | 214 71 60 60 . 38 125 Remotely . | . . . . . . . Salvage Created 741 | . 133 111 . . . 497 Parts 49 | . 10 20 . . . 19 Haulers Intercepted . | . . . . . . . Recyclers Shooed . | . . . . . . . Parts Field Recycled . | . . . . . . . Retrieved Matter . | . . . . . . . Parts Self-Destructed . | . . . . . . . Prevented . | . . . . . . . Kills | -11 -10 -9 -9 -9 -8 -8 ------- Run | Scr Mat Mat Min Exi Min Mat Combat Hostiles Destroyed 25 | . 2 7 . . . 16 Melee 5 | . . . . . . 5 Guns 10 | . 2 7 . . . 1 AOE 10 | . . . . . . 10 Classes Destroyed 7 | . 2 1 . . . 4 Worker 1 | . . . . . . 1 Watcher 3 | . 1 . . . . 2 Swarmer 8 | . . 7 . . . 1 Grunt 12 | . 2 . . . . 10 Brawler 1 | . . . . . . 1 Sentry 3 | . . . . . . 3 Hunter 1 | . . . . . . 1 Best Kill Streak 12 | . 2 7 . . . 12 Combat Bots Only 11 | . 2 7 . . . 11 Max Kills in Single Turn 5 | . 2 1 . . . 5 Gunslinging 1 | . 1 . . . . . Exploded 3 | . . . . . . 3 Melee 1 | . . . . . . 1 Uniques/NPCs Destroyed . | . . . . . . . Combat | -11 -10 -9 -9 -9 -8 -8 -------- Run | Scr Mat Mat Min Exi Min Mat Damage Taken 1650 | . 15 126 . . . 1509 Core 612 | . . 60 . . . 552 Absorbed by Shields . | . . . . . . . Core Remaining (%) 95 | 100 100 . . . 85 . Volleys Fired 32 | . 4 11 4 . . 13 Largest 2 | . 2 1 2 . . 2 Hottest 200 | . 80 40 200 . . 160 Shots Fired 39 | . 8 11 6 . . 14 Gun 22 | . 8 11 . . . 3 Cannon . | . . . . . . . Launcher 8 | . . . . . . 8 Special 9 | . . . 6 . . 3 Kinetic . | . . . . . . . Thermal 12 | . . . 6 . . 6 Explosive 7 | . . . . . . 7 Electromagnetic 20 | . 8 11 . . . 1 Robot Hit Streak 11 | . 7 8 . . . 11 Robot Miss Streak 2 | . 1 1 . . . 2 Penetration Max . | . . . . . . . Secondary Targets 2 | . 1 . . . . 1 Max Gunslinging Chain 1 | . 1 . . . . 1 Shots Hit Robots 47 | . 8 10 . . 3 26 Core Hits 48 | . 5 7 . . . 36 Critical Hits . | . . . . . . . Critical Kills . | . . . . . . . Critical Parts Destroyed . | . . . . . . . Melee Attacks 23 | . 2 2 . . 3 16 Impact . | . . . . . . . Slashing 15 | . . . . . . 15 Piercing . | . . . . . . . Sneak Attacks 3 | . . . . . 3 . Combat Hostiles . | . . . . . . . Follow-up Attacks . | . . . . . . . Damage Inflicted 2316 | . 121 96 . . . 2099 Guns 268 | . 114 96 . . . 58 Cannons . | . . . . . . . Explosions 1252 | . . . . . . 1252 Melee 735 | . . . . . . 735 Ramming 13 | . 7 . . . . 6 Kinetic . | . . . . . . . Thermal 106 | . . . . . . 106 Explosive 1252 | . . . . . . 1252 Electromagnetic 210 | . 114 96 . . . . Impact . | . . . . . . . Slashing 735 | . . . . . . 735 Piercing . | . . . . . . . Highest Corruption 4 | . 1 . . . . 4 Average Corruption 3 | . 1 . . . . 4 Corruption Purged . | . . . . . . . Effects 2 | . . . . . . 2 Message Errors 1 | . . . . . . 1 Matter Fused 1 | . . . . . . 1 Overload Shots . | . . . . . . . Overflow Damage 123 | . . . . . . 123 Projectiles . | . . . . . . . Explosions 6 | . . . . . . 6 Melee 117 | . . . . . . 117 Knockbacks . | . . . . . . . Impact . | . . . . . . . Kinetic . | . . . . . . . Secondary . | . . . . . . . Self-Inflicted Damage 155 | . 3 . . . . 152 Shots 4 | . . . . . . 4 Rammed 2 | . 1 . . . . 1 Targets Rammed 2 | . 1 . . . . 1 Kicked . | . . . . . . . Crushed . | . . . . . . . Highest Temperature 93 | . 63 . 62 . . 93 Average Temperature 32 | . 27 . 28 . . 39 Received Heat Transfer 630 | . 9 . . . . 621 Siege Activations . | . . . . . . . Robots Corrupted . | . . . . . . . Combat Hostiles . | . . . . . . . Parts Fried 4 | . 3 1 . . . . Impact Corruptions . | . . . . . . . Robots Melted . | . . . . . . . Combat Hostiles . | . . . . . . . Parts Melted 1 | . . . . . . 1 Heat Transferred 225 | . . . . . . 225 Parts Sabotaged . | . . . . . . . Parts Stolen . | . . . . . . . Parts Stripped . | . . . . . . . Power Chain Reactions . | . . . . . . . Missiles Intercepted . | . . . . . . . Alert | -11 -10 -9 -9 -9 -8 -8 ------- Run | Scr Mat Mat Min Exi Min Mat Peak Influence 567 | . 72 245 80 . . 567 Initial 80 | . . 25 80 . . . Average 96 | . 35 130 71 . . 191 Maximum Alert Level 2 | . . 1 . . . 2 Low Security (%) 88 | 100 100 81 100 . 100 67 Level 1 5 | . . 18 . . . 9 Level 2 5 | . . . . . . 22 Level 3 . | . . . . . . . Level 4 . | . . . . . . . Level 5 . | . . . . . . . High Security . | . . . . . . . Max Security . | . . . . . . . Squads Dispatched 5 | . . . . . . 5 Investigation . | . . . . . . . Extermination . | . . . . . . . Reinforcement 5 | . . . . . . 5 Assault . | . . . . . . . Garrison . | . . . . . . . Intercept . | . . . . . . . Construction Impeded . | . . . . . . . Haulers Reinforced . | . . . . . . . Stealth | -11 -10 -9 -9 -9 -8 -8 --------- Run | Scr Mat Mat Min Exi Min Mat Distress Signals 2 | . . . . . . 2 Communications Jammed . | . . . . . . . Distress Signals . | . . . . . . . Times Spotted 58 | . 7 10 . . . 41 Peak Tracking Total 17 | . 4 4 . . . 17 Tactical Retreats 3 | . . . . . . 3 Traps | -11 -10 -9 -9 -9 -8 -8 ------- Run | Scr Mat Mat Min Exi Min Mat Traps Triggered 2 | . 2 . . . . . Indirectly . | . . . . . . . Trap Hack Attempts . | . . . . . . . Triggered . | . . . . . . . Disarmed . | . . . . . . . Reprogrammed . | . . . . . . . Reused . | . . . . . . . Traps Extracted . | . . . . . . . Installed . | . . . . . . . Triggered . | . . . . . . . Machines | -11 -10 -9 -9 -9 -8 -8 ---------- Run | Scr Mat Mat Min Exi Min Mat Machines Disabled 2 | . . . . . . 2 Max in Single Turn 1 | . . . . . . 1 Machines Sabotaged . | . . . . . . . Garrisons Compromised . | . . . . . . . Overloaded Fab Kills . | . . . . . . . Fab Network Shutdowns . | . . . . . . . Hacking | -11 -10 -9 -9 -9 -8 -8 --------- Run | Scr Mat Mat Min Exi Min Mat Machines Accessed 4 | . . . . 4 . . Terminals . | . . . . . . . Fabricators . | . . . . . . . Repair Stations . | . . . . . . . Recycling Units . | . . . . . . . Scanalyzers . | . . . . . . . Garrison Access . | . . . . . . . Total Hacks 49 | . . . . 49 . . Successful 49 | . . . . 49 . . Failed . | . . . . . . . Catastrophic . | . . . . . . . Database Lockouts . | . . . . . . . Manual 1 | . . . . 1 . . Terminals . | . . . . . . . Fabricators . | . . . . . . . Repair Stations . | . . . . . . . Recycling Units . | . . . . . . . Scanalyzers . | . . . . . . . Garrison Access . | . . . . . . . Terminal Hacks 49 | . . . . 49 . . Record 49 | . . . . 49 . . Fabricator Hacks . | . . . . . . . Repair Station Hacks . | . . . . . . . Recycling Unit Hacks . | . . . . . . . Scanalyzer . | . . . . . . . Garrison Access Hacks . | . . . . . . . Unauthorized Hacks . | . . . . . . . Terminals . | . . . . . . . Fabricators . | . . . . . . . Repair Stations . | . . . . . . . Recycling Units . | . . . . . . . Scanalyzers . | . . . . . . . Garrison Access . | . . . . . . . Data Cores Recovered . | . . . . . . . Used . | . . . . . . . Hacking Detections . | . . . . . . . Full Trace Events . | . . . . . . . Feedback Events . | . . . . . . . Feedback Blocked . | . . . . . . . Robot Schematics Acquired . | . . . . . . . Robots Built . | . . . . . . . Matter . | . . . . . . . Time . | . . . . . . . Total Robot Build Rating . | . . . . . . . Part Schematics Acquired . | . . . . . . . Parts Built . | . . . . . . . Matter . | . . . . . . . Time . | . . . . . . . Total Part Build Rating . | . . . . . . . Parts Repaired . | . . . . . . . Time . | . . . . . . . Parts Recycled . | . . . . . . . Recycled Matter . | . . . . . . . Retrieved Matter . | . . . . . . . Retrieved Components . | . . . . . . . Parts Scanalyzed . | . . . . . . . Part Schematics Acquired . | . . . . . . . Parts Damaged . | . . . . . . . Bothacking | -11 -10 -9 -9 -9 -8 -8 ------------ Run | Scr Mat Mat Min Exi Min Mat Used RIF Installer . | . . . . . . . Robots Hacked 4 | . 1 1 . . 1 1 Non-combat 2 | . 1 . . . 1 . Combat 2 | . . 1 . . . 1 Robot Hacks Applied 4 | . 1 1 . . 1 1 parse_system 3 | . 1 1 . . . 1 no_distress 1 | . . . . . 1 . Relay Couplers Released . | . . . . . . . Robots Rewired . | . . . . . . . Allies Hacked . | . . . . . . . Hacks Repelled . | . . . . . . . Allies | -11 -10 -9 -9 -9 -8 -8 -------- Run | Scr Mat Mat Min Exi Min Mat Total Allies 2 | . . . 2 . . . Largest Group 2 | . . . 2 2 . . Highest-Rated Group 36 | . . . 36 36 . . Highest-Rated Ally 31 | . . . 31 31 . . Total Orders . | . . . . . . . Ally Attacks . | . . . . . . . Total Damage . | . . . . . . . Kills . | . . . . . . . Allies Corrupted . | . . . . . . . Allies Melted . | . . . . . . . Intel | -11 -10 -9 -9 -9 -8 -8 ------- Run | Scr Mat Mat Min Exi Min Mat Robot Analysis Total . | . . . . . . . Derelict Logs Recovered . | . . . . . . . Drone Launches . | . . . . . . . Drone Recoveries . | . . . . . . . Exploration | -11 -10 -9 -9 -9 -8 -8 ------------- Run | Scr Mat Mat Min Exi Min Mat Turns Passed 2555 | 46 235 241 444 981 191 417 Spaces Moved 2956 | 47 259 317 275 1119 494 445 Core 46 | 4 . 1 . . . 41 Treads . | . . . . . . . Legs . | . . . . . . . Wheels 382 | 43 259 69 . . . 11 Hover 225 | . . . . . . 225 Flight 2303 | . . 247 275 1119 494 168 Fastest Speed 37 | 50 80 37 37 37 37 37 Average Speed 45 | 77 80 49 37 37 37 53 Slowest Speed 200 | 80 80 200 37 117 37 150 Overloaded Moves . | . . . . . . . Propulsion Burnouts . | . . . . . . . Robots Hopped 2 | . . . 1 . 1 . Cave-ins Triggered . | . . . . . . . Exploration Rate (%) 50 | 3 43 38 43 95 81 52 Regions Visited 6 Branch Regions 3 Pre-discovered Areas 2 | . . . 1 1 . . Known Exits Taken . | . . . . . . . Unknown Exits Taken 6 | 1 1 1 1 1 1 . Scrap Searched 1 | . . . . . 1 . Spaces Dug 6 | . . . 6 . . . Terrain Destroyed 71 | . . . 6 . . 65 Melee . | . . . . . . . Projectile 6 | . . . 6 . . . AOE 65 | . . . . . . 65 Terrain Rammed . | . . . . . . . Walls Destroyed . | . . . . . . . Machines Disabled . | . . . . . . . Actions | -11 -10 -9 -9 -9 -8 -8 --------- Run | Scr Mat Mat Min Exi Min Mat Total 4072 | 53 275 386 597 1677 497 587 Wait 974 | . . 34 320 547 . 73 Move 2946 | 46 258 316 272 1118 491 445 Hop 2 | . . . 1 . 1 . Pick Up 15 | 2 3 1 . 1 . 8 Fast Attach 37 | 5 4 11 . 4 1 12 Attach 10 | . 1 . . 1 . 8 Detach 5 | . . 3 . 1 . 1 Swap . | . . . . . . . Drop 26 | . 2 8 . 5 1 10 Fire 32 | . 4 11 4 . . 13 Melee 23 | . 2 2 . . 3 16 Ram 2 | . 1 . . . . 1 Kick . | . . . . . . . Crush . | . . . . . . . Escape Stasis . | . . . . . . . Rewire . | . . . . . . . Trap . | . . . . . . . Miscellaneous . | . . . . . . . Route ------- -11/Scrapyard -10/Materials -9/Materials -9/Mines (discovered 2 exits: [*Mat] / *Exi) -9/Exiles (discovered 2 exits: [*Min x2]) -8/Mines -8/Materials History --------- Turn | Location | Event 18 | -11/Scrapyard | Discovered new exit (range 16) 47 | -11/Scrapyard | Entered Materials 268 | -10/Materials | Discovered new exit (range 16) 282 | -10/Materials | Entered another Materials area 282 | -9/Materials | Evolved 2 slots: Utility x2 316 | -9/Materials | Build established: Mutant 408 | -9/Materials | Destroyed 7 combat bots 514 | -9/Materials | Discovered new exit (range 8) 523 | -9/Materials | Entered Mines 524 | -9/Mines | Assembled infested the area 565 | -9/Mines | Learned location of Storage (-7) 600 | -9/Mines | Met a Derelict bent on vengeance 692 | -9/Mines | Build established: Scout 929 | -9/Mines | Discovered new exit (range 4) 951 | -9/Mines | Deemed a non-threat by the Exiles lab entrance 952 | -9/Mines | Discovered new exit (range 5) 967 | -9/Mines | Entered Exiles 967 | -9/Exiles | Accompanied by 2 allies 972 | -9/Exiles | Discovered new exit (range 17) 976 | -9/Exiles | Met 8R-AWN 982 | -9/Exiles | Met EX-HEX 997 | -9/Exiles | Led the pair of lost Derelicts to a safe place 1004 | -9/Exiles | Met EX-DEC 1033 | -9/Exiles | Discovered new exit (range 11) 1066 | -9/Exiles | Met EX-BIN 1074 | -9/Exiles | Aligned with FarCom system 1074 | -9/Exiles | Given EX-Vault access code 1145 | -9/Exiles | Learned location of Zion (-6) 1753 | -9/Exiles | Opened EX-Vault 1756 | -9/Exiles | Found Prototype Device 1756 | -9/Exiles | Identified Supersonic Drone Bay 1758 | -9/Exiles | Found Prototype Device 1758 | -9/Exiles | Identified Skeleton Box 1763 | -9/Exiles | Found Prototype Slashing Weapon 1763 | -9/Exiles | Identified Longsword +1 1791 | -9/Exiles | Warned to stay clear of 0b10 Research branches 1881 | -9/Exiles | Visited The Gauntlet 1948 | -9/Exiles | Stole three prototypes: Supersonic Drone Bay, Skeleton Box, Longsword +1 1948 | -9/Exiles | Entered Mines 2051 | -8/Mines | Build established: Mutant 2128 | -8/Mines | Discovered new exit (range 8) 2139 | -8/Mines | Entered Materials 2139 | -8/Materials | Evolved 2 slots: Utility x2 2418 | -8/Materials | Lost 3 parts (1p1u1w) 2447 | -8/Materials | Core integrity fell below 50% 2475 | -8/Materials | Destroyed 11 combat bots 2525 | -8/Materials | Core integrity fell below 20% 2529 | -8/Materials | Lost 12 parts (4n6u2w) 2556 | -8/Materials | Destroyed by Y-45 Defender with Beam Rifle Last Messages --------------- 02465_ Acquired 2 matter. 02466_ System corrupted: Matter fused (-7). 02466_ Acquired 26 matter. 02468_ R-06 Scavenger collects Aluminum Leg. 02470_ R-06 Scavenger collects Wheel. 02474_ The unstable cave ceiling collapses. 02479_ Acquired Adv. Sensor Array. 02486_ Particle Charger destroyed. 02492_ Maneuvering Thrusters destroyed. 02493_ Airjet destroyed. 02504_ Slammed into T-07 Excavator. 02510_ Acquired Gatling Laser. 02519_ G-47 Trooper destroyed. 02519_ Switching to secondary target: G-47 Trooper. 02529_ Gatling Laser destroyed. 02541_ Acquired Com. Wheel. 02550_ Acquired Shock Bomb Launcher. 02551_ Material Compactor disabled. 02553_ KZAIO5VN ZVB=7RPUP#5ENBEQ42UM/ &NO1D9 [Achievement: This Is Interesting...] Map ----- +----------------------------------------------------+ | ??????????????????????????????????# | | ??????????????????????????????????######## | | ?????????????????????????????????????????# | | ?????????????????????????????????????????# | | ???????????????????????????????########### | | ???????????????????????????? | | ???????????????????????????? | | ???????????????????????????? | | ?????????????????????????????############/# | | ???????????????????????????????????????! ? | | ?????????????????????????????????????# ? | | ?????????????????????????????????????# ? | | ??????????????????????????????#?###### ? | | ??????????????????????????????# !# ? | | ??????????????????????????????# """ # ? | | ??????????????????????????????# """ !# = ? | | ??????????????##########??????# """ # ??? | | ??????????????# ! ###+###?? # ??? | | ??????????????# # !#???? #????? | | ??????????????# """ g# #######/###### | | ??????????????# "" gg Y | | ??????????????# "" Y# ######## % | | ??????????????# "" # #??????# | | ??????????????# " #######??????# !!!! | | ??????????????# #????????????# !!!! | | ??????????????# !@ #????????????####### | | ??????????????##########??????????????????# | | ??????????????????????????????????????????# | | ??????????????????????????????????????????# | | ??????????????????????????????????????????? | | | | | | | | | | | | | | | | | | | | | | | | | | | | | | | | | | | | | | | | | +----------------------------------------------------+ Best States ------------- Heat Dissipation 31 Energy Generation 14 Energy Capacity 250 Matter Stores 300 Matter Capacity 300 Sight Range 18 Robot Scan Range 16 Terrain Scan Range 14 Terrain Scan Density 110 Additional Mass Support 6 Resistance: KI 20 Resistance: TH 20 Resistance: EX 20 Resistance: EM 20 Resistance: I 20 Resistance: S 20 Resistance: P 20 Evasion (%) 68 Particle Charging 15 Offensive Hacking 10 Item Schematics ----------------- None Robot Schematics ------------------ None Fabricated ------------ Nothing Alien Tech Used ----------------- None Achievements -------------- Deadly Force This Is Interesting... Challenges ------------ None Game ------ Seed SmallRiotAutogun Manual? 0 Play Time 00:46:45 Cumulative 92.9 hours Start 2021.10.26 @ 03:17:55 End 2021.10.26 @ 04:09:07 Sessions 1 Manual Loads 0 Difficulty Adventurer Special Mode None Game No. 108 Rogue 90 Adventurer 18 Explorer 0 Win Type - Total 0 Types 0/0/0/0/0/0/0/0/0 Lore% 28 Gallery% 39 Achievement% 26 Wizard Run 0 Options --------- ASCII 0 Keyboard 0 Movement Numpad Keybinds 0 Fullscreen 1 Font 16/Terminus Map View 76x50 Tactical HUD 1 Map Filters NONE Filters NONE Steam 1 RUN: b2f8d623-b8e2-43dd-be35-67360abfa5a9